bitfinex-derivatives/quotes_ETHF0:USTF0_20250103
["timestamp","ask_amount","ask_price","bid_price","bid_amount"]
[1735926843381,5.40849125,3578.4,3578.3,0.27967]
[1735926844480,4.38870117,3578.6,3578.5,0.27965]
[1735926845978,0.27963,3578.8,3578.5,0.27965]
[1735926846286,2.40928183,3578.8,3578.6,0.4423]
[1735926846481,0.27964,3578.7,3578.6,0.8684]
[1735926846673,2.12965183,3578.8,3578.1,0.4279]
[1735926846982,2.12965183,3578.5,3578.2,0.8684]
[1735926847182,0.27966,3578.4,3578.2,0.8684]
[1735926848383,0.27967,3578.3,3578.2,0.8684]
[1735926848583,0.4361,3578.6,3578.2,0.8684]
[1735926848781,3.27401938,3578.3,3578.2,1.14807]
[1735926850284,2.18231587,3578.3,3578.2,1.14807]
[1735926850484,2.18231587,3578.3,3578.2,0.8684]
[1735926850880,2.18231587,3578.3,3578.2,1.14807]
[1735926852089,3.27401938,3578.3,3578.2,1.14807]
[1735926853282,3.27401938,3578.4,3578.3,0.27967]
[1735926854483,3.27401938,3578.4,3578.3,3.48747]
[1735926854790,2.18183918,3578.4,3578.3,3.48747]
[1735926855985,3.27401938,3578.5,3578.3,3.48747]
[1735926856189,2.18183918,3578.7,3578.6,0.27964]
[1735926858991,2.18183918,3578.7,3578.4,1.131]
[1735926859192,2.18183918,3578.7,3578.4,1.41065]
[1735926859193,2.46147918,3578.7,3578.4,1.41065]
[1735926859381,0.27964,3578.6,3578.4,1.41065]
[1735926859689,2.18183918,3578.7,3578.3,3.2078]
[1735926859991,2.46147918,3578.7,3578.5,0.27964]
[1735926860192,2.18183918,3578.7,3578.5,0.27964]
[1735926860485,2.18183918,3578.6,3578.5,0.27964]
[1735926865593,2.18183918,3578.6,3578.2,0.8684]
[1735926865893,0.27966,3578.4,3578.2,0.8684]
[1735926866792,0.27965,3578.5,3578.3,0.27966]
[1735926867097,0.27966,3578.4,3578.2,1.14807]
[1735926867701,2.46148918,3578.5,3578.3,0.27966]
[1735926867998,2.18183918,3578.5,3578.2,0.8684]
[1735926868198,4.31149101,3578.5,3578.2,0.8684]
[1735926868393,0.27967,3578.3,3578.2,0.8684]
[1735926870394,2.18183918,3578.5,3578.2,0.8684]
[1735926870798,2.18183918,3578.5,3578.4,0.27966]
[1735926870998,3.27401938,3578.5,3578.4,0.27966]
[1735926872496,0.27965,3578.6,3578.5,0.27965]
[1735926872497,3.27401938,3578.6,3578.5,0.27965]
[1735926872698,0.70371938,3578.6,3578.5,3.48745]
[1735926873997,2.18281026,3578.8,3578.6,0.27964]
[1735926874198,2.18281026,3578.8,3578.7,0.27964]
[1735926876705,0.41952048,3579.0,3578.6,1.131]
[1735926876897,0.69914048,3579.0,3578.7,0.27964]
[1735926877099,0.41952048,3579.0,3578.7,0.27963]
[1735926877303,0.69914048,3579.0,3578.8,0.27963]
[1735926877498,0.69914048,3579.0,3578.6,1.131]
[1735926877704,0.69914048,3579.0,3578.7,0.27963]
[1735926877908,0.27963,3578.8,3578.6,0.27964]
[1735926878302,0.70343,3578.8,3578.6,0.27964]
[1735926878504,0.4238,3578.8,3578.6,0.27964]
[1735926878804,40.8,3578.7,3578.6,0.27964]
[1735926879309,41.21952048,3578.7,3578.6,0.27964]
[1735926882306,0.41952048,3578.7,3578.6,0.27964]
[1735926883604,0.41952048,3578.7,3578.6,2.40929183]
[1735926884213,40.8,3579.2,3579.0,0.27961]
[1735926884214,4.78257707,3579.1,3579.0,0.27961]
[1735926884803,4.78257707,3579.1,3579.0,1.16011]
[1735926885401,4.78257707,3579.1,3579.0,0.72161]
[1735926887211,4.73998009,3579.1,3579.0,0.72161]
[1735926887413,4.73998009,3579.1,3579.0,0.27961]
[1735926890506,4.73998009,3579.1,3579.0,3.48741]
[1735926890707,4.73998009,3579.1,3579.0,0.27961]
[1735926893517,0.41952048,3579.1,3579.0,0.27961]
[1735926895017,5.82801173,3579.1,3579.0,0.27961]
[1735926895219,6.10761173,3579.1,3578.9,0.27962]
[1735926895417,0.832,3579.0,3578.9,0.27962]
[1735926896712,5.57706282,3579.0,3578.9,0.27962]
[1735926899720,5.57706282,3579.0,3578.9,3.48742]
[1735926899921,5.16316282,3579.0,3578.9,0.27962]
[1735926900621,0.83762048,3579.0,3578.9,0.27962]
[1735926901324,0.27962,3578.9,3578.7,0.4319]
[1735926901523,0.453,3578.9,3578.5,3.2078]
[1735926902126,0.453,3578.9,3578.1,7.43912717]
[1735926902127,3.90688,3578.8,3578.1,7.43912717]
[1735926902319,0.6991,3578.7,3578.1,7.43912717]
[1735926902524,0.27967,3578.2,3578.1,6.58152717]
[1735926902727,0.27967,3578.3,3578.1,6.58152717]
[1735926903322,0.27967,3578.2,3578.1,6.58152717]
[1735926903531,0.4168,3578.2,3578.1,6.58152717]
[1735926903927,0.27966,3578.4,3578.1,6.86120717]
[1735926904132,4.80267456,3578.2,3578.1,0.27968]
[1735926904829,4.80267456,3578.2,3578.0,0.70899]
[1735926905031,4.80267456,3578.2,3578.1,0.27968]
[1735926905728,4.38315408,3578.2,3578.1,0.27968]
[1735926906233,4.38315408,3578.2,3578.0,0.70898]
[1735926906426,4.38315408,3578.2,3578.1,0.27968]
[1735926906620,4.38315408,3578.2,3578.0,0.4293]
[1735926907027,4.38315408,3578.2,3578.1,0.27968]
[1735926907229,4.38315408,3578.2,3578.0,0.70898]
[1735926907732,4.38315408,3578.2,3578.1,0.27968]
[1735926909835,0.41952048,3578.3,3578.2,0.27967]
[1735926912434,0.41952048,3578.3,3578.1,0.27968]
[1735926912639,0.41952048,3578.3,3578.0,2.55895183]
[1735926912938,0.41952048,3578.3,3578.1,0.27968]
[1735926913233,0.41952048,3578.3,3578.0,2.55895183]
[1735926913535,0.41952048,3578.3,3578.2,0.27967]
[1735926913843,0.27968,3578.2,3578.0,0.70899]
[1735926914041,4.66283408,3578.2,3578.0,0.70899]
[1735926914431,4.66283408,3578.2,3578.0,0.4293]
[1735926914633,0.27968,3578.1,3578.0,0.4293]
[1735926915435,0.27969,3578.0,3577.9,3.2078]
[1735926915635,0.72899,3578.0,3577.9,3.2078]
[1735926915934,0.4493,3578.0,3577.6,0.71642]
[1735926916237,0.707,3577.9,3577.6,0.71642]
[1735926916635,0.707,3577.9,3577.7,0.27971]
[1735926916829,0.4273,3577.9,3577.6,0.4367]
[1735926917034,0.43473057,3577.7,3577.6,0.71642]
[1735926917236,0.43473057,3577.8,3577.7,0.27971]
[1735926917637,5.22997456,3577.9,3577.7,0.27971]
[1735926917837,5.22997456,3577.9,3577.6,0.71642]
[1735926917838,5.50967456,3577.9,3577.6,0.71642]
[1735926918039,0.43472259,3577.7,3577.6,0.71642]
[1735926918846,0.4346817,3577.7,3577.6,0.71642]
[1735926919049,0.69923048,3577.8,3577.6,0.4367]
[1735926919440,0.41952048,3577.8,3577.6,0.4367]
[1735926919744,0.41952048,3577.8,3577.6,0.71642]
[1735926920045,0.41952048,3577.7,3577.6,0.71642]
[1735926920647,0.41952048,3577.7,3577.6,0.4367]
[1735926920940,0.41952048,3577.7,3577.6,0.71642]
[1735926921445,0.41952048,3577.8,3577.7,0.27971]
[1735926922546,0.4273,3577.9,3577.7,0.27971]
[1735926923046,0.4273,3577.9,3577.8,0.27971]
[1735926923748,0.4273,3577.9,3577.7,0.69891]
[1735926923941,0.84692151,3577.9,3577.7,0.69891]
[1735926925244,0.4273,3577.9,3577.7,0.69891]
[1735926925443,0.4273,3577.9,3577.7,0.4192]
[1735926925648,0.4273,3577.9,3577.8,0.27971]
[1735926927849,0.84693801,3577.9,3577.8,0.27971]
[1735926929144,0.4273,3577.9,3577.8,0.27971]
[1735926929751,4.38315408,3578.2,3578.1,0.27968]
[1735926930652,4.38315408,3578.5,3578.0,2.12965183]
[1735926930853,0.43464466,3578.1,3578.0,2.40934183]
[1735926931055,4.66281408,3578.5,3578.2,0.27967]
[1735926931253,0.27966,3578.4,3578.3,0.4225]
[1735926931454,4.38315408,3578.5,3577.9,3.6236]
[1735926931753,4.38315408,3578.5,3578.4,0.27966]
[1735926931953,4.80275592,3578.4,3578.3,0.27966]
[1735926932156,4.80275592,3578.4,3578.0,0.4595]
[1735926932358,0.27967,3578.3,3578.1,0.27968]
[1735926932551,0.4345,3578.2,3578.1,0.27968]
[1735926933256,0.85410184,3578.2,3578.1,0.27968]
[1735926934560,4.13601084,3578.2,3578.1,0.27968]
[1735926935254,3.70151084,3578.2,3578.1,0.27968]
[1735926935957,3.281909,3578.2,3578.1,0.27968]
[1735926936357,3.71681827,3578.2,3578.1,0.27968]
[1735926937061,3.281909,3578.2,3578.1,1.40968]
[1735926937555,2.18845842,3578.2,3578.1,1.40968]
[1735926938558,3.281909,3578.3,3578.1,1.13]
[1735926938861,3.281909,3578.3,3578.2,0.27967]
[1735926939558,3.281909,3578.3,3578.1,1.13]
[1735926939857,0.27967,3578.3,3578.1,0.27968]
[1735926940058,0.27967,3578.3,3578.0,0.73919]
[1735926940258,0.4239,3578.2,3578.0,0.73919]
[1735926940761,0.4493,3578.1,3578.0,0.73919]
[1735926941164,4.15294424,3578.1,3578.0,0.73919]
[1735926941365,0.2797,3578.0,3577.7,0.69891]
[1735926941565,4.15294424,3578.1,3577.6,0.4485]
[1735926941766,0.27971,3577.8,3577.6,0.4485]
[1735926941965,0.2797,3577.9,3577.6,0.72822]
[1735926942167,0.2797,3577.9,3577.6,0.4485]
[1735926942465,40.8,3578.0,3577.8,0.2797]
[1735926942466,41.07969,3578.0,3577.8,0.2797]
[1735926942667,4.55800671,3577.9,3577.7,0.27971]
[1735926942961,0.17485263,3577.8,3577.7,0.27971]
[1735926943166,0.17485886,3577.8,3577.7,0.27971]
[1735926943770,5.25729897,3577.8,3577.6,0.4485]
[1735926944070,0.27973,3577.6,3577.3,0.4175]
[1735926944270,0.90039428,3577.5,3577.3,0.8406]
[1735926944469,0.17485428,3577.4,3577.3,0.8406]
[1735926945573,4.97758897,3577.4,3577.3,1.12035]
[1735926945868,4.9776122,3577.4,3577.3,0.8406]
[1735926947775,4.9776122,3577.4,3577.3,1.12035]
[1735926949365,4.97761085,3577.4,3577.3,1.12035]
[1735926950569,0.59445677,3577.4,3577.3,1.12035]
[1735926951273,3.87704404,3577.4,3577.3,1.12035]
[1735926952571,3.87702465,3577.4,3577.3,1.12035]
[1735926952775,0.17485677,3577.4,3577.3,1.12035]
[1735926954483,0.17485677,3577.4,3577.1,2.12965183]
[1735926954677,0.17485677,3577.4,3577.1,2.57755183]
[1735926954678,0.60335677,3577.3,3577.1,2.57755183]
[1735926954980,0.17485677,3577.2,3577.1,0.4479]
[1735926955374,0.45460677,3577.2,3577.1,0.4479]
[1735926955778,0.87427112,3577.2,3577.1,0.4479]
[1735926956777,0.87284743,3577.2,3577.1,0.4479]
[1735926958585,0.69941435,3577.2,3577.1,0.4479]
[1735926961585,0.41966435,3577.2,3577.1,0.4479]
[1735926961786,0.27978,3577.0,3576.8,3.48758]
[1735926962185,0.27978,3576.9,3576.8,3.2078]
[1735926962683,2.54931618,3577.2,3576.8,3.2078]
[1735926962881,3.27905852,3577.0,3576.9,0.27977]
[1735926964184,3.27905852,3577.1,3577.0,0.27977]
[1735926964484,3.55881852,3577.1,3576.9,0.27978]
[1735926964685,3.27905852,3577.1,3576.9,0.27978]
[1735926964986,0.17488938,3577.0,3576.9,0.27978]
[1735926966885,0.17489157,3577.0,3576.9,0.27978]
[1735926968180,2.3609543,3577.0,3576.9,0.27978]
[1735926969291,0.17489157,3577.0,3576.9,0.27978]
[1735926969690,0.17488531,3577.0,3576.8,4.24041142]
[1735926969895,0.17488263,3576.9,3576.8,4.24041142]
[1735926970195,0.17488263,3576.9,3576.8,4.52019142]
[1735926970397,0.17488718,3576.9,3576.8,4.52019142]
[1735926970698,0.17488718,3576.9,3576.8,1.31239142]
[1735926971898,2.36069836,3576.9,3576.8,1.31239142]
[1735926972192,2.36070251,3576.9,3576.8,1.31239142]
[1735926972794,2.36070029,3576.9,3576.8,1.31239142]
[1735926973002,0.17488911,3576.9,3576.8,4.52019142]
[1735926973605,0.17488911,3576.9,3576.8,1.31239142]
[1735926974708,1.20750053,3576.9,3576.8,0.27978]
[1735926975108,0.17488911,3576.9,3576.8,0.27978]
[1735926975800,0.17488911,3576.9,3576.8,1.31239142]
[1735926976100,2.36070029,3576.9,3576.8,1.31239142]
[1735926976499,3.67309171,3576.9,3576.6,0.433]
[1735926976699,0.17488911,3576.8,3576.6,0.433]
[1735926976896,0.17488911,3576.7,3576.6,0.7128]
[1735926978402,2.36070029,3576.7,3576.6,0.7128]
[1735926979001,2.36071506,3576.7,3576.6,0.7128]
[1735926979595,2.36071385,3576.7,3576.6,0.7128]
[1735926981409,2.36071318,3576.7,3576.6,0.7128]
[1735926981908,2.18581118,3576.7,3576.6,0.7128]
[1735926982114,2.36071311,3576.7,3576.6,0.7128]
[1735926984215,0.17490193,3576.7,3576.6,0.7128]
[1735926987308,3.87372232,3576.7,3576.6,0.7128]
[1735926987505,3.69882039,3576.7,3576.6,0.7128]
[1735926987703,3.87371737,3576.7,3576.6,0.7128]
[1735926988210,3.87371641,3576.7,3576.6,0.7128]
[1735926988714,3.87371358,3576.7,3576.6,0.7128]
[1735926990305,0.59465506,3576.7,3576.6,0.7128]
[1735926990704,0.41976187,3576.7,3576.6,0.7128]
[1735926990904,0.59466257,3576.7,3576.6,0.7128]
[1735926991616,1.62727399,3576.7,3576.6,0.433]
[1735926991915,2.34016399,3576.7,3576.6,0.433]
[1735926992213,6.3035562,3576.7,3576.6,0.433]
[1735926993408,12.07615965,3576.7,3576.6,0.433]
[1735926993605,10.76375823,3576.7,3576.4,4.52022142]
[1735926993808,0.4547007,3576.6,3576.4,4.52022142]
[1735926994112,0.1749007,3576.5,3576.4,4.52022142]
[1735926994315,0.17491872,3576.5,3576.4,4.52023142]
[1735926994619,4.55937521,3576.5,3576.4,4.52023142]
[1735926995809,3.46309204,3576.5,3576.4,4.52023142]
[1735926997110,3.28817332,3576.5,3576.4,4.52023142]
[1735927001214,4.38445649,3576.5,3576.4,4.24041142]
[1735927001414,4.38445649,3576.5,3576.4,4.52023142]
[1735927007223,4.38445649,3576.6,3576.4,4.24041142]
[1735927007417,4.38445649,3576.6,3576.5,1.31242142]
[1735927008617,5.40849125,3576.7,3576.6,0.2798]
[1735927008819,5.40849125,3576.7,3576.6,1.31241142]
[1735927011319,5.40849125,3576.7,3576.6,1.03261142]
[1735927011628,40.8,3576.7,3576.6,1.31241142]
[1735927012124,40.8,3576.7,3576.6,1.03261142]
[1735927012322,41.07979,3576.7,3576.6,1.03261142]
[1735927012537,40.8,3576.7,3576.6,1.31241142]
[1735927013030,40.8,3576.7,3576.2,5.54822406]
[1735927013031,50.96072696,3576.7,3576.2,4.39474406]
[1735927013232,0.27982,3576.3,3576.2,4.39474406]
[1735927013925,1.31243142,3576.3,3576.2,4.39474406]
[1735927014324,1.31243142,3576.3,3576.2,2.50874406]
[1735927014921,0.27986,3575.9,3575.7,1.76928142]
[1735927015227,0.4738,3575.8,3575.7,1.76928142]
[1735927016431,0.4738,3575.8,3575.7,1.48941142]
[1735927016640,0.89356128,3575.8,3575.7,1.76928142]
[1735927017328,0.89356128,3575.8,3575.7,1.48941142]
[1735927018028,1.17342128,3575.8,3575.7,1.48941142]
[1735927018335,5.55043639,3575.8,3575.7,1.48941142]
[1735927020023,4.79677639,3575.8,3575.7,1.76928142]
[1735927020528,4.79677639,3575.8,3575.7,1.48941142]
[1735927020927,4.37701511,3575.9,3575.7,1.48941142]
[1735927021329,4.37701511,3575.9,3575.7,1.76927142]
[1735927021531,4.37701511,3575.9,3575.7,1.48941142]
[1735927021830,4.65687511,3575.9,3575.7,1.48941142]
[1735927022430,5.07663639,3575.9,3575.7,1.48941142]
[1735927022631,0.27986,3575.8,3575.7,0.4568]
[1735927023925,0.41976128,3575.8,3575.7,0.4568]
[1735927024139,0.41976128,3575.8,3575.7,0.73667]
[1735927025143,0.41976128,3575.9,3575.7,0.73667]
[1735927025334,3.981488,3575.9,3575.7,0.4568]
[1735927025532,3.981488,3575.9,3575.6,0.27987]
[1735927025733,3.981488,3575.9,3575.7,0.433]
[1735927025929,3.701628,3575.9,3575.7,0.71287]
[1735927026133,4.73423942,3575.9,3575.7,0.71287]
[1735927026433,4.31447814,3575.9,3575.7,0.71287]
[1735927026631,4.59432814,3575.9,3575.7,0.71287]
[1735927026832,4.31447814,3575.9,3575.7,0.71287]
[1735927027039,3.28186672,3575.9,3575.8,0.27986]
[1735927027734,3.28186672,3575.9,3575.7,0.71286]
[1735927028042,3.28186672,3575.9,3575.8,1.03261142]
[1735927028227,3.28186672,3575.9,3575.8,4.52027142]
[1735927028434,4.37701511,3576.1,3575.8,4.24041142]
[1735927028635,4.37701511,3576.1,3576.0,2.34507284]
[1735927028936,4.37701511,3576.1,3576.0,1.31246142]
[1735927029148,0.43439183,3576.3,3575.8,3.2078]
[1735927029437,1.31244142,3576.3,3576.0,1.03261142]
[1735927029930,0.27983,3576.3,3576.1,0.4296]
[1735927030437,1.47151142,3576.5,3576.1,0.4296]
[1735927030438,4.81591511,3576.5,3576.1,0.4296]
[1735927030633,4.37701511,3576.5,3576.3,0.27982]
[1735927031742,4.37701511,3576.5,3576.4,0.4665]
[1735927032335,0.2798,3576.6,3576.4,0.4665]
[1735927032336,0.69958835,3576.6,3576.4,0.4665]
[1735927032937,0.41978835,3576.6,3576.4,0.74632]
[1735927033437,0.41978835,3576.6,3576.4,0.4665]
[1735927033638,0.41978835,3576.6,3576.5,0.27981]
[1735927033939,4.37701511,3576.8,3576.4,0.4665]
[1735927034249,4.37701511,3576.8,3576.7,0.27979]
[1735927034442,4.65679511,3576.8,3576.7,0.27979]
[1735927034943,4.37701511,3576.8,3576.7,0.27979]
[1735927035246,4.79679906,3576.8,3576.7,0.27979]
[1735927037048,5.07657906,3576.8,3576.7,0.27979]
[1735927039342,4.98586505,3576.8,3576.7,0.27979]
[1735927039543,4.70608505,3576.8,3576.7,0.27979]
[1735927039946,4.70608505,3576.8,3576.7,1.17479]
[1735927040942,0.72847,3577.0,3576.9,0.27978]
[1735927042349,5.52646234,3577.0,3576.9,0.27978]
[1735927046356,0.27978,3576.9,3576.8,0.27978]
[1735927046851,4.79799234,3577.0,3576.9,0.27978]
[1735927048252,0.41978395,3577.1,3576.7,0.895]
[1735927048457,0.41978395,3577.1,3577.0,3.48757]
[1735927049949,0.41978395,3577.1,3577.0,3.91917]
[1735927050654,0.41978395,3577.1,3577.0,0.71137]
[1735927050854,0.41978395,3577.1,3577.0,3.91917]
[1735927052258,0.41978395,3577.1,3577.0,4.95163358]
[1735927053551,1.31221358,3577.3,3577.1,0.27976]
[1735927053759,0.27975,3577.2,3577.1,0.27976]
[1735927054152,0.27975,3577.2,3577.0,4.67186358]
[1735927054355,0.27975,3577.2,3577.1,0.27976]
[1735927054553,0.27975,3577.2,3577.0,4.67186358]
[1735927054755,0.27975,3577.2,3577.1,0.27976]
[1735927055558,0.27975,3577.2,3577.0,4.95162358]
[1735927055761,0.27975,3577.2,3577.1,0.27976]
[1735927056155,0.27975,3577.2,3577.0,4.95162358]
[1735927056360,0.27976,3577.1,3577.0,4.95162358]
[1735927056560,0.27976,3577.2,3577.0,4.95162358]
[1735927057261,1.31221358,3577.3,3577.0,4.67186358]
[1735927057456,4.37820839,3577.5,3577.0,4.67186358]
[1735927057657,0.27975,3577.3,3577.2,1.03246358]
[1735927058052,4.37820839,3577.5,3577.2,1.03246358]
[1735927058258,4.37820839,3577.5,3577.4,4.52000358]
[1735927058762,4.65793839,3577.5,3577.4,4.52000358]
[1735927059257,2.94114018,3577.6,3577.4,4.52000358]
[1735927059459,1.31219358,3577.5,3577.4,4.24026358]
[1735927059665,1.31219358,3577.5,3577.4,3.2078]
[1735927061058,0.27973,3577.5,3577.4,3.2078]
[1735927061255,2.66141018,3577.6,3577.4,4.52000358]
[1735927061460,2.18721018,3577.6,3577.4,4.24026358]
[1735927061665,0.27973,3577.5,3577.4,4.52000358]
[1735927061860,2.46694018,3577.6,3577.4,4.52000358]
[1735927062460,2.18721018,3577.6,3577.5,0.27973]
[1735927062862,2.46694018,3577.6,3577.4,4.51999358]
[1735927063163,0.27973,3577.6,3577.4,4.51999358]
[1735927063358,2.18721018,3577.7,3577.4,4.24026358]
[1735927063566,0.27973,3577.6,3577.4,4.51999358]
[1735927063764,0.27973,3577.6,3577.5,0.27973]
[1735927063964,2.46692018,3577.7,3577.5,0.27973]
[1735927064266,2.46692018,3577.7,3577.6,1.03246358]
[1735927065163,2.18721018,3577.7,3577.6,1.31218358]
[1735927065364,2.18721018,3577.7,3577.6,2.44118358]
[1735927066062,0.43477196,3577.9,3577.8,0.27971]
[1735927066262,0.43477196,3577.9,3577.8,4.51997358]
[1735927066571,2.18721018,3578.2,3577.8,5.27272716]
[1735927066781,4.37820839,3578.6,3578.5,0.27965]
[1735927066980,4.37820839,3578.6,3578.5,5.64891358]
[1735927067176,5.41067197,3578.6,3578.5,4.3368]
[1735927067671,1.03246358,3578.6,3578.5,4.3368]
[1735927067877,0.74284,3578.7,3578.5,3.2078]
[1735927068178,0.4632,3578.7,3578.5,3.2078]
[1735927068376,1.31210358,3578.6,3578.5,3.2078]
[1735927068580,0.27967,3578.4,3578.1,1.129]
[1735927068777,1.03246358,3578.3,3578.1,1.129]
[1735927068971,1.48716358,3578.3,3578.1,1.5763]
[1735927069382,1.48716358,3578.3,3578.1,1.85598]
[1735927070282,0.4547,3578.3,3578.1,1.85598]
[1735927070790,0.4547,3578.3,3578.1,1.5763]
[1735927071887,0.4547,3578.3,3578.2,0.27967]
[1735927073684,0.9101,3578.7,3578.1,1.5763]
[1735927073883,0.9101,3578.7,3578.4,3.2078]
[1735927074083,0.9101,3578.7,3578.5,0.27965]
[1735927074288,0.4469,3578.7,3578.4,3.2078]
[1735927074487,3.00468956,3579.0,3578.8,0.27962]
[1735927074692,0.8706,3579.0,3578.8,0.27962]
[1735927075194,0.8706,3579.0,3578.9,0.27962]
[1735927075391,0.445,3579.0,3578.9,0.27962]
[1735927076894,0.445,3579.0,3578.6,0.4606]
[1735927077589,0.445,3579.0,3578.8,0.27962]
[1735927077797,0.445,3579.0,3578.9,0.27962]
[1735927077989,0.445,3579.0,3578.6,0.4606]
[1735927078189,0.72462,3579.0,3578.7,0.27963]
[1735927078390,0.445,3579.0,3578.8,0.27963]
[1735927078687,0.445,3579.0,3578.6,0.4606]
[1735927078881,0.445,3579.0,3578.8,0.27963]
[1735927079289,0.72461,3579.0,3578.7,0.27963]
[1735927079487,0.445,3579.0,3578.8,0.27962]
[1735927080188,0.445,3579.0,3578.6,0.4606]
[1735927080395,0.445,3579.0,3578.9,0.27962]
[1735927082384,0.4655,3579.2,3579.1,0.2796]
[1735927083588,0.4655,3579.2,3579.0,0.2796]
[1735927083894,0.4655,3579.2,3579.1,0.2796]
[1735927084098,0.7451,3579.2,3578.9,0.27962]
[1735927084283,0.27961,3579.1,3578.8,3.2078]
[1735927084489,0.27961,3579.1,3578.9,0.27962]
[1735927085503,0.4655,3579.2,3578.8,3.2078]
[1735927085797,2.13408956,3579.0,3577.8,3.2078]
[1735927086098,2.13408956,3578.4,3577.8,3.2078]
[1735927086397,0.27969,3578.1,3577.8,3.4875]
[1735927086588,42.1231,3578.3,3577.8,3.2078]
[1735927086792,0.27969,3578.1,3577.9,0.2797]
[1735927087191,0.27968,3578.2,3577.8,3.2078]
[1735927087699,0.27968,3578.2,3578.0,0.27969]
[1735927088296,42.1231,3578.3,3577.8,3.2078]
[1735927088502,0.27969,3578.1,3577.8,3.4875]
[1735927088689,0.27969,3578.1,3577.9,0.27969]
[1735927090294,1.3231,3578.3,3577.8,3.2078]
[1735927090496,0.27968,3578.2,3577.9,0.27969]
[1735927090695,1.60277,3578.3,3578.0,0.27969]
[1735927091000,1.3231,3578.3,3578.0,0.27969]
[1735927091193,0.27968,3578.2,3578.0,0.27969]
[1735927091699,1.3231,3578.3,3578.0,0.27969]
[1735927091995,3.2766979,3578.4,3577.8,5.34188956]
[1735927092294,3.2766979,3578.4,3578.2,0.27967]
[1735927092493,3.5563579,3578.5,3578.2,0.27967]
[1735927092798,3.2766979,3578.5,3578.4,0.27966]
[1735927093500,0.27965,3578.6,3578.0,1.17002]
[1735927093702,0.27965,3578.6,3578.1,0.4318]
[1735927093890,3.2766979,3578.7,3578.1,0.4318]
[1735927094088,0.27964,3578.6,3578.4,0.27965]
[1735927094400,0.27964,3578.6,3578.5,0.27965]
[1735927094705,3.2766979,3578.6,3578.1,0.4318]
[1735927095001,0.27966,3578.5,3578.4,0.27965]
[1735927095295,0.27968,3578.2,3578.1,0.27967]
[1735927096095,0.27969,3578.0,3577.9,0.27969]
[1735927096595,0.27969,3578.1,3578.0,0.27968]
[1735927096796,0.27968,3578.2,3578.1,0.27968]
[1735927096998,0.72788,3578.2,3578.1,0.27968]
[1735927097499,3.7248979,3578.2,3577.7,4.0932]
[1735927097806,0.27969,3578.1,3577.7,4.0932]
[1735927097999,4.1800979,3578.2,3578.1,0.27968]
[1735927098804,3.2766979,3578.2,3578.1,0.27968]
[1735927099302,3.2766979,3578.2,3577.7,4.0932]
[1735927099499,0.27969,3578.1,3578.0,0.27969]
[1735927099902,3.2766979,3578.2,3577.7,4.0932]
[1735927100098,0.27969,3578.1,3578.0,0.27969]
[1735927100409,3.2766979,3578.1,3577.7,4.0932]
[1735927100598,0.27969,3578.0,3577.9,0.27969]
[1735927100991,3.2766979,3578.1,3577.7,4.0932]
[1735927101198,3.5563879,3578.1,3577.9,0.27969]
[1735927101399,3.5563879,3578.1,3578.0,0.27969]
[1735927101602,3.2766979,3578.1,3577.9,0.27969]
[1735927101803,3.5563879,3578.1,3578.0,0.27969]
[1735927102894,0.41962919,3578.2,3577.7,4.0932]
[1735927103199,0.27969,3578.1,3577.9,0.27969]
[1735927103399,0.69931919,3578.1,3577.9,0.27969]
[1735927103595,0.69931919,3578.1,3577.7,4.0932]
[1735927103800,0.69931919,3578.1,3578.0,0.27969]
[1735927104408,0.41962919,3578.1,3578.0,0.27969]
[1735927104808,4.65788839,3578.2,3577.7,4.79248]
[1735927105016,4.65788839,3578.2,3578.1,0.27968]
[1735927105207,4.37820839,3578.2,3578.1,0.27968]
[1735927106214,3.73386676,3578.3,3577.7,6.92656956]
[1735927106508,3.28426676,3578.3,3578.2,0.27967]
[1735927106711,3.56393676,3578.3,3578.2,0.27967]
[1735927107609,0.69925175,3578.3,3578.2,0.27967]
[1735927108907,0.41958175,3578.3,3578.2,0.27967]
[1735927109314,4.37820839,3578.4,3578.3,0.27967]
[1735927110820,3.2867584,3578.6,3578.5,0.27965]
[1735927111115,3.5663984,3578.6,3578.5,3.48745]
[1735927111315,3.2867584,3578.6,3578.5,3.48745]
[1735927112212,3.5663984,3578.6,3578.5,3.48745]
[1735927112916,3.5663984,3578.6,3578.5,0.27965]
[1735927113220,0.27964,3578.6,3578.5,0.27965]
[1735927113609,5.07743014,3578.6,3578.5,0.27965]
[1735927114912,4.65784839,3578.6,3578.5,0.27965]
[1735927115112,4.37820839,3578.6,3578.5,0.27965]
[1735927116806,0.69922175,3578.6,3578.5,0.27965]
[1735927117004,0.41958175,3578.6,3578.5,0.27965]
[1735927118116,0.41958175,3578.6,3578.5,3.48745]
[1735927119827,4.37820839,3578.7,3578.6,0.27964]
[1735927119828,3.28927503,3578.7,3578.6,0.27964]
[1735927120119,3.28927503,3578.7,3578.6,0.74334]
[1735927120314,3.28927503,3578.7,3578.6,2.87742956]
[1735927121422,3.98846678,3579.1,3578.6,2.59778956]
[1735927121611,3.98846678,3579.1,3578.7,0.4279]
[1735927121814,3.98846678,3579.1,3578.9,0.27962]
[1735927122014,3.98846678,3579.1,3579.0,0.4394]
[1735927123320,3.70885678,3579.1,3578.7,0.4279]
[1735927123529,0.27963,3578.9,3578.7,0.70753]
[1735927123715,1.3522,3579.0,3578.7,0.4279]
[1735927123919,0.27963,3578.8,3578.7,0.4279]
[1735927124619,3.56890503,3578.8,3578.7,0.4279]
[1735927125527,0.27964,3578.6,3578.5,3.2078]
[1735927126722,3.70882036,3578.8,3578.5,3.48745]
[1735927127225,0.41954533,3578.6,3578.5,3.48745]
[1735927127625,0.69918533,3578.6,3578.5,3.48745]
[1735927127927,0.69918533,3578.6,3578.5,3.2078]
[1735927128124,0.69918533,3578.6,3578.2,0.4446]
[1735927128125,0.27967,3578.3,3578.2,0.4446]
[1735927128419,0.27967,3578.2,3578.1,3.2078]
[1735927128624,0.74897,3578.2,3578.1,3.2078]
[1735927129020,0.27967,3578.2,3578.1,3.2078]
[1735927129421,0.45450364,3578.2,3578.1,3.2078]